[Event "Live Chess"]
[Site "Chess.com"]
[Date "2024.06.02"]
[Round "-"]
[White "ProfPoisson"]
[Black "Delacorta"]
[Result "0-1"]
[WhiteElo "1317"]
[BlackElo "1522"]
[TimeControl "300"]
[EndTime "2:52:12 PDT"]
[Termination "Delacorta won by resignation"]

1. e4 {[%clk 0:04:53.6]} 1... e6 {[%clk 0:04:59]} 2. d4 {[%clk 0:04:49.4]} 2...
d5 {[%clk 0:04:57.9]} 3. e5 {[%clk 0:04:40.3]} 3... c5 {[%clk 0:04:56]} 4. c3
{[%clk 0:04:38.8]} 4... Nc6 {[%clk 0:04:45.4]} 5. Nf3 {[%clk 0:04:37.1]} 5...
Bd7 {[%clk 0:04:40.6]} 6. Bd3 {[%clk 0:04:35.2]} 6... Qb6 {[%clk 0:04:37.8]} 7.
O-O {[%clk 0:04:33.4]} 7... Nh6 {[%clk 0:04:25.8]} 8. dxc5 {[%clk 0:04:30.2]}
8... Bxc5 {[%clk 0:04:23.3]} 9. b4 {[%clk 0:04:28.9]} 9... Bxf2+ {[%clk
0:03:59]} 10. Rxf2 {[%clk 0:04:26.9]} 10... Ng4 {[%clk 0:03:58.1]} 11. Nbd2
{[%clk 0:04:19.3]} 11... Nxf2 {[%clk 0:03:45]} 12. Qf1 {[%clk 0:04:15.9]} 0-1

[Event "Live Chess"]
[Site "Chess.com"]
[Date "2024.06.02"]
[Round "-"]
[White "defenderalist"]
[Black "upoe610"]
[Result "0-1"]
[WhiteElo "1522"]
[BlackElo "2147"]
[TimeControl "300"]
[EndTime "2:52:51 PDT"]
[Termination "upoe610 won by resignation"]

1. e4 {[%clk 0:04:59.4]} 1... e5 {[%clk 0:04:57.5]} 2. f4 {[%clk 0:04:58.2]}
2... exf4 {[%clk 0:04:56.2]} 3. Nf3 {[%clk 0:04:57.4]} 3... Nf6 {[%clk
0:04:54.9]} 4. Nc3 {[%clk 0:04:54.9]} 4... d5 {[%clk 0:04:53.2]} 5. e5 {[%clk
0:04:50.8]} 5... Nh5 {[%clk 0:04:50.1]} 6. d4 {[%clk 0:04:45.8]} 6... g5 {[%clk
0:04:48.2]} 7. Be2 {[%clk 0:04:35.1]} 7... Be6 {[%clk 0:04:45.3]} 8. O-O {[%clk
0:04:27]} 8... g4 {[%clk 0:04:44.1]} 9. Ne1 {[%clk 0:04:20.5]} 9... Qh4 {[%clk
0:04:42.4]} 10. Bxf4 {[%clk 0:04:15.6]} 10... Nxf4 {[%clk 0:04:37.7]} 11. Rxf4
{[%clk 0:04:14]} 11... Bh6 {[%clk 0:04:36.9]} 12. Rf1 {[%clk 0:03:37.8]} 12...
Be3+ {[%clk 0:04:34.7]} 13. Kh1 {[%clk 0:03:34.9]} 13... g3 {[%clk 0:04:34]} 14.
Nf3 {[%clk 0:03:20.3]} 14... Qh6 {[%clk 0:04:32.5]} 15. Qd3 {[%clk 0:02:57.4]}
15... Nd7 {[%clk 0:04:31.1]} 16. h4 {[%clk 0:02:42.2]} 16... Bg4 {[%clk
0:04:24.4]} 17. Nxd5 {[%clk 0:02:27.6]} 17... Bxf3 {[%clk 0:04:22.6]} 18. Nxe3
{[%clk 0:02:22.8]} 18... Qxh4+ {[%clk 0:04:20]} 0-1

[Event "Live Chess"]
[Site "Chess.com"]
[Date "2024.06.02"]
[Round "-"]
[White "Isambard_Thomas"]
[Black "Ninifu"]
[Result "1-0"]
[WhiteElo "2161"]
[BlackElo "2011"]
[TimeControl "300"]
[EndTime "2:52:58 PDT"]
[Termination "Isambard_Thomas won by checkmate"]

1. d4 {[%clk 0:04:58.1]} 1... Nf6 {[%clk 0:04:58.4]} 2. Nf3 {[%clk 0:04:58]}
2... g6 {[%clk 0:04:57]} 3. Bg5 {[%clk 0:04:57.9]} 3... Bg7 {[%clk 0:04:55.2]}
4. e3 {[%clk 0:04:57.4]} 4... O-O {[%clk 0:04:53.8]} 5. Bd3 {[%clk 0:04:56.9]}
5... d5 {[%clk 0:04:51]} 6. Nbd2 {[%clk 0:04:55.4]} 6... b6 {[%clk 0:04:49.3]}
7. Qe2 {[%clk 0:04:53.6]} 7... Bb7 {[%clk 0:04:48.5]} 8. O-O-O {[%clk
0:04:51.6]} 8... c5 {[%clk 0:04:47.5]} 9. c3 {[%clk 0:04:49.9]} 9... Nc6 {[%clk
0:04:45.5]} 10. h4 {[%clk 0:04:47.7]} 10... h6 {[%clk 0:04:41.2]} 11. h5 {[%clk
0:04:46.4]} 11... hxg5 {[%clk 0:04:38.9]} 12. hxg6 {[%clk 0:04:44.1]} 12... fxg6
{[%clk 0:04:26]} 13. Bxg6 {[%clk 0:04:39.7]} 13... g4 {[%clk 0:04:19.1]} 14. Ng5
{[%clk 0:04:15.8]} 14... Qd6 {[%clk 0:04:03.3]} 15. Qd3 {[%clk 0:04:10.3]} 15...
Ne4 {[%clk 0:03:16.7]} 16. Bh7+ {[%clk 0:04:03.7]} 16... Kh8 {[%clk 0:03:12]}
17. Bxe4+ {[%clk 0:04:02.7]} 17... Kg8 {[%clk 0:03:11.1]} 18. Bxd5+ {[%clk
0:03:58.9]} 18... Qxd5 {[%clk 0:03:09.6]} 19. Qh7# {[%clk 0:03:56.5]} 1-0

[Event "Live Chess"]
[Site "Chess.com"]
[Date "2024.06.02"]
[Round "-"]
[White "wadsy27"]
[Black "CarmelJane"]
[Result "1-0"]
[WhiteElo "2571"]
[BlackElo "2056"]
[TimeControl "300"]
[EndTime "2:53:26 PDT"]
[Termination "wadsy27 won by resignation"]

1. Nf3 {[%clk 0:04:58]} 1... Nf6 {[%clk 0:04:58.6]} 2. e3 {[%clk 0:04:57.6]}
2... b6 {[%clk 0:04:54.6]} 3. b3 {[%clk 0:04:57]} 3... Bb7 {[%clk 0:04:54.1]} 4.
Bb2 {[%clk 0:04:56.7]} 4... g6 {[%clk 0:04:53.2]} 5. c4 {[%clk 0:04:54.6]} 5...
Bg7 {[%clk 0:04:52.7]} 6. Be2 {[%clk 0:04:54.3]} 6... O-O {[%clk 0:04:50.6]} 7.
O-O {[%clk 0:04:53.9]} 7... c5 {[%clk 0:04:49.7]} 8. Nc3 {[%clk 0:04:53.2]} 8...
a6 {[%clk 0:04:46.5]} 9. d4 {[%clk 0:04:51.8]} 9... cxd4 {[%clk 0:04:43.8]} 10.
Nxd4 {[%clk 0:04:50.9]} 10... d6 {[%clk 0:04:35.3]} 11. Bf3 {[%clk 0:04:49.9]}
11... Bxf3 {[%clk 0:04:33.2]} 12. Qxf3 {[%clk 0:04:49.8]} 12... Nbd7 {[%clk
0:04:28.2]} 13. Nc6 {[%clk 0:04:43.4]} 13... Qe8 {[%clk 0:04:23.9]} 14. Rfd1
{[%clk 0:04:38.1]} 14... Nh5 {[%clk 0:03:36.3]} 15. Nd5 {[%clk 0:04:21.5]} 15...
Bxb2 {[%clk 0:03:21.3]} 16. Nc7 {[%clk 0:04:20.1]} 16... Bxa1 {[%clk 0:03:15.4]}
17. Nxe8 {[%clk 0:04:18.5]} 17... Raxe8 {[%clk 0:03:14.8]} 18. Rxa1 {[%clk
0:04:17.4]} 18... Nc5 {[%clk 0:03:05.2]} 19. Rd1 {[%clk 0:04:14.3]} 19... f5
{[%clk 0:02:59.5]} 20. h3 {[%clk 0:04:06.2]} 20... Nf6 {[%clk 0:02:57.5]} 21.
Nd4 {[%clk 0:04:01.7]} 21... Nfe4 {[%clk 0:02:53.8]} 22. b4 {[%clk 0:03:55.6]}
22... Na4 {[%clk 0:02:44.6]} 23. Ne6 {[%clk 0:03:49.7]} 23... Rf6 {[%clk
0:02:41.6]} 24. Nc7 {[%clk 0:03:48.5]} 24... Rc8 {[%clk 0:02:33.3]} 25. Nd5
{[%clk 0:03:47.6]} 25... Rf7 {[%clk 0:02:32.1]} 26. Rd4 {[%clk 0:03:42.4]} 26...
e6 {[%clk 0:02:26.3]} 27. Rxe4 {[%clk 0:03:28.7]} 27... exd5 {[%clk 0:02:19.2]}
28. Rd4 {[%clk 0:03:10.4]} 28... dxc4 {[%clk 0:02:18.1]} 29. Qd1 {[%clk
0:03:07.9]} 29... Nc3 {[%clk 0:02:10.1]} 30. Qc2 {[%clk 0:03:05]} 30... Ne4
{[%clk 0:02:08.5]} 31. Rxc4 {[%clk 0:03:02.9]} 31... Rxc4 {[%clk 0:02:03.6]} 32.
Qxc4 {[%clk 0:03:02.8]} 32... b5 {[%clk 0:01:29.3]} 33. Qc8+ {[%clk 0:02:59.4]}
33... Kg7 {[%clk 0:01:29]} 34. f3 {[%clk 0:02:57.4]} 34... Nd2 {[%clk
0:01:23.1]} 35. Qxa6 {[%clk 0:02:56.2]} 35... Nc4 {[%clk 0:01:21]} 36. Qxb5
{[%clk 0:02:54.5]} 36... Nxe3 {[%clk 0:01:17]} 37. a4 {[%clk 0:02:53.1]} 37...
d5 {[%clk 0:01:15.6]} 38. Qb6 {[%clk 0:02:51.5]} 38... Re7 {[%clk 0:01:13.9]}
39. a5 {[%clk 0:02:50.1]} 39... Nc4 {[%clk 0:01:08.6]} 40. Qd4+ {[%clk
0:02:48.6]} 40... Kf7 {[%clk 0:01:06.6]} 41. a6 {[%clk 0:02:47.5]} 41... Re1+
{[%clk 0:01:04.6]} 42. Kf2 {[%clk 0:02:46.2]} 42... Re6 {[%clk 0:00:56.7]} 43.
a7 {[%clk 0:02:44.9]} 43... Nb6 {[%clk 0:00:54.4]} 44. Qxb6 {[%clk 0:02:42.4]}
1-0

[Event "Live Chess"]
[Site "Chess.com"]
[Date "2024.06.02"]
[Round "-"]
[White "Thebigsqueeze"]
[Black "vincents82"]
[Result "0-1"]
[WhiteElo "2271"]
[BlackElo "2003"]
[TimeControl "300"]
[EndTime "2:53:29 PDT"]
[Termination "vincents82 won by resignation"]

1. d4 {[%clk 0:04:57.3]} 1... d5 {[%clk 0:04:54.9]} 2. Nf3 {[%clk 0:04:55.1]}
2... Nf6 {[%clk 0:04:53.8]} 3. g3 {[%clk 0:04:53.9]} 3... Bf5 {[%clk 0:04:51.4]}
4. Bg2 {[%clk 0:04:53]} 4... e6 {[%clk 0:04:51]} 5. O-O {[%clk 0:04:52.1]} 5...
c6 {[%clk 0:04:50.6]} 6. c4 {[%clk 0:04:50.1]} 6... Nbd7 {[%clk 0:04:49.7]} 7.
cxd5 {[%clk 0:04:47.5]} 7... exd5 {[%clk 0:04:48.9]} 8. Bf4 {[%clk 0:04:46.8]}
8... h6 {[%clk 0:04:47.8]} 9. Nc3 {[%clk 0:04:45.5]} 9... Be7 {[%clk 0:04:46.6]}
10. Ne5 {[%clk 0:04:42.5]} 10... O-O {[%clk 0:04:42.4]} 11. Qb3 {[%clk
0:04:41.2]} 11... Qb6 {[%clk 0:04:40.2]} 12. Rfd1 {[%clk 0:04:40]} 12... Qxb3
{[%clk 0:04:38.6]} 13. axb3 {[%clk 0:04:38.4]} 13... Nxe5 {[%clk 0:04:37]} 14.
dxe5 {[%clk 0:04:36.2]} 14... Nh5 {[%clk 0:04:28.4]} 15. Bd2 {[%clk 0:04:18.7]}
15... g5 {[%clk 0:04:27.2]} 16. e4 {[%clk 0:03:57.7]} 16... dxe4 {[%clk
0:04:20.6]} 17. Nxe4 {[%clk 0:03:56.3]} 17... Ng7 {[%clk 0:04:14.4]} 18. Be3
{[%clk 0:03:34.8]} 18... a6 {[%clk 0:04:08.9]} 19. Nf6+ {[%clk 0:03:15]} 19...
Bxf6 {[%clk 0:04:07.1]} 20. exf6 {[%clk 0:03:14.4]} 20... Ne6 {[%clk 0:04:02.3]}
21. Rd7 {[%clk 0:03:11.7]} 21... Rab8 {[%clk 0:03:57.1]} 22. h4 {[%clk
0:03:01.2]} 22... Nc5 {[%clk 0:03:48.9]} 23. Bxc5 {[%clk 0:02:58.6]} 23... Bxd7
{[%clk 0:03:47.5]} 24. Bxf8 {[%clk 0:02:56.7]} 24... Kxf8 {[%clk 0:03:44.6]} 25.
hxg5 {[%clk 0:02:55.4]} 25... hxg5 {[%clk 0:03:43.5]} 26. Bf3 {[%clk 0:02:27.9]}
26... Be6 {[%clk 0:03:42]} 27. b4 {[%clk 0:02:23.3]} 27... Rd8 {[%clk
0:03:39.1]} 28. Kg2 {[%clk 0:02:15.4]} 28... Rd2 {[%clk 0:03:33.3]} 29. Rh1
{[%clk 0:02:12]} 29... Ke8 {[%clk 0:03:32.3]} 30. Rh8+ {[%clk 0:02:06]} 30...
Kd7 {[%clk 0:03:31.2]} 31. Rg8 {[%clk 0:02:04.2]} 31... Rxb2 {[%clk 0:03:23.2]}
32. Rxg5 {[%clk 0:02:02]} 32... Rxb4 {[%clk 0:03:21.7]} 33. g4 {[%clk
0:02:00.6]} 33... Rb5 {[%clk 0:03:14.6]} 34. Rg8 {[%clk 0:01:55]} 34... a5
{[%clk 0:03:05.6]} 35. g5 {[%clk 0:01:53.5]} 35... a4 {[%clk 0:02:55.7]} 36. g6
{[%clk 0:01:51.7]} 36... Rg5+ {[%clk 0:02:50.8]} 37. Kf1 {[%clk 0:01:47.3]}
37... Rxg6 {[%clk 0:02:49.7]} 38. Ra8 {[%clk 0:01:33.5]} 38... Rxf6 {[%clk
0:02:43.7]} 39. Bg2 {[%clk 0:01:26.8]} 39... Bc4+ {[%clk 0:02:36.8]} 40. Ke1
{[%clk 0:01:25.2]} 40... Ba6 {[%clk 0:02:35.3]} 41. Bh3+ {[%clk 0:01:20.5]}
41... Kc7 {[%clk 0:02:32.6]} 42. Rc8+ {[%clk 0:01:18.9]} 42... Kb6 {[%clk
0:02:31.8]} 0-1

[Event "Live Chess"]
[Site "Chess.com"]
[Date "2024.06.02"]
[Round "-"]
[White "JanMur7"]
[Black "seasidecastle27"]
[Result "0-1"]
[WhiteElo "2264"]
[BlackElo "1923"]
[TimeControl "300"]
[EndTime "2:53:31 PDT"]
[Termination "seasidecastle27 won by resignation"]

1. c4 {[%clk 0:04:58.9]} 1... e5 {[%clk 0:04:57.2]} 2. Nc3 {[%clk 0:04:57.9]}
2... d6 {[%clk 0:04:56.5]} 3. Nf3 {[%clk 0:04:56.2]} 3... Nf6 {[%clk 0:04:55.3]}
4. d4 {[%clk 0:04:55.2]} 4... exd4 {[%clk 0:04:53.2]} 5. Nxd4 {[%clk 0:04:54.6]}
5... Nc6 {[%clk 0:04:52.6]} 6. Nxc6 {[%clk 0:04:51.3]} 6... bxc6 {[%clk
0:04:51.2]} 7. g3 {[%clk 0:04:51.2]} 7... Be7 {[%clk 0:04:49.5]} 8. Bg2 {[%clk
0:04:50]} 8... Bd7 {[%clk 0:04:48.7]} 9. O-O {[%clk 0:04:48.6]} 9... O-O {[%clk
0:04:47.4]} 10. b3 {[%clk 0:04:45.7]} 10... Rb8 {[%clk 0:04:43.7]} 11. Bb2
{[%clk 0:04:36.1]} 11... Re8 {[%clk 0:04:33.9]} 12. Qc2 {[%clk 0:04:26.7]} 12...
Bf8 {[%clk 0:04:21.9]} 13. Ne4 {[%clk 0:04:22.1]} 13... Nxe4 {[%clk 0:04:18.5]}
14. Bxe4 {[%clk 0:04:22]} 14... g6 {[%clk 0:04:15.1]} 15. Qc3 {[%clk 0:04:15.4]}
15... f6 {[%clk 0:04:04.8]} 16. Bf3 {[%clk 0:04:14.1]} 16... Bg7 {[%clk
0:04:00.9]} 17. Rad1 {[%clk 0:04:04]} 17... Re7 {[%clk 0:03:58.6]} 18. Ba3
{[%clk 0:03:53.2]} 18... Qe8 {[%clk 0:03:43.2]} 19. Qa5 {[%clk 0:03:30.8]} 19...
Bh3 {[%clk 0:03:31.1]} 20. Rfe1 {[%clk 0:03:27.1]} 20... f5 {[%clk 0:03:12.2]}
21. Qxa7 {[%clk 0:03:04.4]} 21... Ra8 {[%clk 0:03:06.2]} 22. Qxa8 {[%clk
0:02:40.6]} 22... Qxa8 {[%clk 0:03:01.1]} 23. Bc1 {[%clk 0:02:40]} 23... Bc3
{[%clk 0:02:56.3]} 24. Bd2 {[%clk 0:02:36.8]} 24... Qa5 {[%clk 0:02:52.4]} 25.
Bxc3 {[%clk 0:02:33]} 25... Qxc3 {[%clk 0:02:50.5]} 26. Bxc6 {[%clk 0:02:32.7]}
26... Qb2 {[%clk 0:02:39.6]} 27. a4 {[%clk 0:02:25.3]} 27... Rxe2 {[%clk
0:02:29.7]} 28. Rxe2 {[%clk 0:02:16.3]} 28... Qxe2 {[%clk 0:02:27.6]} 29. Rc1
{[%clk 0:02:10.3]} 29... Qb2 {[%clk 0:02:22.4]} 30. Re1 {[%clk 0:02:06.2]} 30...
Qd2 {[%clk 0:02:15.5]} 31. Ra1 {[%clk 0:01:57.3]} 31... Qb2 {[%clk 0:02:12.5]}
32. Re1 {[%clk 0:01:55.7]} 32... Qxb3 {[%clk 0:02:10.8]} 33. Ra1 {[%clk
0:01:30.9]} 33... Qxc4 {[%clk 0:01:57.9]} 34. Bh1 {[%clk 0:01:25.2]} 34... Qc3
{[%clk 0:01:48.9]} 35. Rd1 {[%clk 0:01:23.1]} 35... Qc2 {[%clk 0:01:40.9]} 36.
Ra1 {[%clk 0:01:19.9]} 36... Kg7 {[%clk 0:01:37.1]} 37. a5 {[%clk 0:00:47]}
37... Qc3 {[%clk 0:01:35.2]} 0-1

[Event "Live Chess"]
[Site "Chess.com"]
[Date "2024.06.02"]
[Round "-"]
[White "AlanBstard10"]
[Black "WorcesterYork"]
[Result "0-1"]
[WhiteElo "1224"]
[BlackElo "2476"]
[TimeControl "300"]
[EndTime "2:53:32 PDT"]
[Termination "WorcesterYork won by resignation"]

1. b4 {[%clk 0:04:57.3]} 1... d6 {[%clk 0:04:59.9]} 2. Bb2 {[%clk 0:04:55.8]}
2... c6 {[%clk 0:04:58.7]} 3. c4 {[%clk 0:04:53.4]} 3... e5 {[%clk 0:04:56]} 4.
a3 {[%clk 0:04:52.1]} 4... Ne7 {[%clk 0:04:53.8]} 5. e3 {[%clk 0:04:50.6]} 5...
Ng6 {[%clk 0:04:53]} 6. Be2 {[%clk 0:04:49.9]} 6... Qg5 {[%clk 0:04:50]} 7. g3
{[%clk 0:04:45]} 7... Qe7 {[%clk 0:04:48]} 8. Nf3 {[%clk 0:04:44]} 8... Bh3
{[%clk 0:04:45.5]} 9. Bf1 {[%clk 0:04:41.7]} 9... Bxf1 {[%clk 0:04:44.1]} 10.
Rxf1 {[%clk 0:04:40.7]} 10... Nd7 {[%clk 0:04:44]} 11. Nc3 {[%clk 0:04:38.1]}
11... h6 {[%clk 0:04:42.4]} 12. Ne4 {[%clk 0:04:33.6]} 12... f5 {[%clk
0:04:40.7]} 13. Nc3 {[%clk 0:04:31.2]} 13... Qe6 {[%clk 0:04:40.1]} 14. Qb3
{[%clk 0:04:28]} 14... Be7 {[%clk 0:04:34.5]} 15. Rb1 {[%clk 0:04:25.9]} 15...
Bf6 {[%clk 0:04:33.1]} 16. Bc1 {[%clk 0:04:22.9]} 16... e4 {[%clk 0:04:31.1]}
17. Nd4 {[%clk 0:04:18.3]} 17... Bxd4 {[%clk 0:04:30.3]} 18. exd4 {[%clk
0:04:17.5]} 18... O-O {[%clk 0:04:29.3]} 19. c5 {[%clk 0:04:14.3]} 19... d5
{[%clk 0:04:28.2]} 20. Qc2 {[%clk 0:04:06.7]} 20... f4 {[%clk 0:04:27.2]} 21. d3
{[%clk 0:03:58.9]} 21... exd3+ {[%clk 0:04:25.6]} 22. Kd2 {[%clk 0:03:49.9]}
22... dxc2 {[%clk 0:04:24.3]} 23. Kxc2 {[%clk 0:03:49.4]} 23... fxg3 {[%clk
0:04:20.7]} 24. hxg3 {[%clk 0:03:46.9]} 24... Qf5+ {[%clk 0:04:20]} 25. Kb3
{[%clk 0:03:45.5]} 25... a5 {[%clk 0:04:18.6]} 26. Ka2 {[%clk 0:03:43.5]} 26...
axb4 {[%clk 0:04:17.7]} 27. Rxb4 {[%clk 0:03:41.1]} 27... Qc2+ {[%clk
0:04:16.1]} 28. Rb2 {[%clk 0:03:39.5]} 28... Qxc3 {[%clk 0:04:15]} 29. Rd1
{[%clk 0:03:37.5]} 29... Rxa3+ {[%clk 0:04:13]} 0-1

[Event "Live Chess"]
[Site "Chess.com"]
[Date "2024.06.02"]
[Round "-"]
[White "friarnator"]
[Black "slava_ukr"]
[Result "1-0"]
[WhiteElo "2220"]
[BlackElo "2415"]
[TimeControl "300"]
[EndTime "2:53:37 PDT"]
[Termination "friarnator won on time"]

1. d4 {[%clk 0:04:57.5]} 1... d5 {[%clk 0:04:58.9]} 2. Nc3 {[%clk 0:04:56.7]}
2... Nf6 {[%clk 0:04:57.7]} 3. Bf4 {[%clk 0:04:56.1]} 3... e6 {[%clk 0:04:56.5]}
4. e3 {[%clk 0:04:55.4]} 4... Bd6 {[%clk 0:04:55.6]} 5. Nf3 {[%clk 0:04:52.8]}
5... O-O {[%clk 0:04:51.4]} 6. Bd3 {[%clk 0:04:50.5]} 6... b6 {[%clk 0:04:49.2]}
7. O-O {[%clk 0:04:47.9]} 7... Ba6 {[%clk 0:04:47.7]} 8. Ne2 {[%clk 0:04:42.6]}
8... Bxd3 {[%clk 0:04:44.1]} 9. Qxd3 {[%clk 0:04:41.1]} 9... Qc8 {[%clk
0:04:30]} 10. c3 {[%clk 0:04:38.1]} 10... Qa6 {[%clk 0:04:28.5]} 11. Qxa6 {[%clk
0:04:31.9]} 11... Nxa6 {[%clk 0:04:27.3]} 12. a4 {[%clk 0:04:30.7]} 12... Ne4
{[%clk 0:04:16.1]} 13. Rfd1 {[%clk 0:04:20.9]} 13... f6 {[%clk 0:04:07]} 14.
Bxd6 {[%clk 0:04:15.1]} 14... cxd6 {[%clk 0:04:04.9]} 15. Nd2 {[%clk 0:04:15]}
15... f5 {[%clk 0:03:58]} 16. Nf4 {[%clk 0:04:12.8]} 16... Kf7 {[%clk
0:03:55.7]} 17. f3 {[%clk 0:04:10.7]} 17... Nxd2 {[%clk 0:03:50.7]} 18. Rxd2
{[%clk 0:04:10.6]} 18... g5 {[%clk 0:03:47.9]} 19. Nd3 {[%clk 0:04:06.6]} 19...
Kf6 {[%clk 0:03:40.6]} 20. a5 {[%clk 0:03:50.7]} 20... b5 {[%clk 0:03:39.2]} 21.
Re1 {[%clk 0:03:40.1]} 21... Rab8 {[%clk 0:03:32.1]} 22. e4 {[%clk 0:03:37.6]}
22... b4 {[%clk 0:03:07.4]} 23. e5+ {[%clk 0:03:22.7]} 23... Ke7 {[%clk
0:02:49.9]} 24. exd6+ {[%clk 0:03:18.3]} 24... Kxd6 {[%clk 0:02:49]} 25. cxb4
{[%clk 0:03:09.3]} 25... Nxb4 {[%clk 0:02:47.3]} 26. Nc5 {[%clk 0:03:07.3]}
26... Rf6 {[%clk 0:02:38.4]} 27. Rde2 {[%clk 0:02:59.5]} 27... Re8 {[%clk
0:02:36.6]} 28. h4 {[%clk 0:01:59.2]} 28... h6 {[%clk 0:02:32.6]} 29. hxg5
{[%clk 0:01:57.3]} 29... hxg5 {[%clk 0:02:31.8]} 30. Rc1 {[%clk 0:01:54]} 30...
Rf7 {[%clk 0:02:14.2]} 31. Rc3 {[%clk 0:01:45.7]} 31... Nc6 {[%clk 0:02:08.8]}
32. Nxe6 {[%clk 0:01:38]} 32... Rfe7 {[%clk 0:01:56.9]} 33. Rec2 {[%clk
0:01:09.9]} 33... Kxe6 {[%clk 0:01:37.2]} 34. Rxc6+ {[%clk 0:01:07.8]} 34... Kf7
{[%clk 0:01:36.3]} 35. Rc7 {[%clk 0:01:02.9]} 35... a6 {[%clk 0:01:15.4]} 36.
Kf2 {[%clk 0:01:00.3]} 36... f4 {[%clk 0:01:02.3]} 37. b4 {[%clk 0:00:57]} 37...
Rb8 {[%clk 0:00:57.7]} 38. Rxe7+ {[%clk 0:00:48]} 38... Kxe7 {[%clk 0:00:56.7]}
39. Rc6 {[%clk 0:00:47.1]} 39... Rxb4 {[%clk 0:00:55.1]} 40. Rxa6 {[%clk
0:00:46.5]} 40... Rxd4 {[%clk 0:00:54.1]} 41. Rg6 {[%clk 0:00:41.7]} 41... Rd2+
{[%clk 0:00:46.5]} 42. Kf1 {[%clk 0:00:38.4]} 42... Ra2 {[%clk 0:00:39.4]} 43.
a6 {[%clk 0:00:36.4]} 43... d4 {[%clk 0:00:38.5]} 44. Rxg5 {[%clk 0:00:30.3]}
44... Rxa6 {[%clk 0:00:33.4]} 45. Re5+ {[%clk 0:00:29.3]} 45... Kf6 {[%clk
0:00:30.8]} 46. Re4 {[%clk 0:00:28.2]} 46... Ra1+ {[%clk 0:00:28.3]} 47. Kf2
{[%clk 0:00:27.5]} 47... Ra2+ {[%clk 0:00:27.4]} 48. Kg1 {[%clk 0:00:26.7]}
48... d3 {[%clk 0:00:24.3]} 49. Rd4 {[%clk 0:00:22.4]} 49... d2 {[%clk
0:00:21.3]} 50. Kf1 {[%clk 0:00:18.8]} 50... Ke5 {[%clk 0:00:17.1]} 51. Re4+
{[%clk 0:00:18.2]} 51... Kf5 {[%clk 0:00:16.2]} 52. Ke2 {[%clk 0:00:16.4]} 52...
d1=Q+ {[%clk 0:00:13.7]} 53. Kxd1 {[%clk 0:00:15.5]} 53... Rxg2 {[%clk
0:00:12.8]} 54. Ra4 {[%clk 0:00:15.2]} 54... Rf2 {[%clk 0:00:11.2]} 55. Ra3
{[%clk 0:00:13.3]} 55... Kg5 {[%clk 0:00:08.9]} 56. Ke1 {[%clk 0:00:12.9]} 56...
Rb2 {[%clk 0:00:07.8]} 57. Kf1 {[%clk 0:00:09.8]} 57... Kh4 {[%clk 0:00:06.6]}
58. Ra4 {[%clk 0:00:08.4]} 58... Kg3 {[%clk 0:00:05.6]} 59. Ra3 {[%clk
0:00:08.3]} 59... Rb1+ {[%clk 0:00:03.6]} 60. Ke2 {[%clk 0:00:07.1]} 60... Rb2+
{[%clk 0:00:02.5]} 61. Ke1 {[%clk 0:00:06.5]} 1-0

[Event "Live Chess"]
[Site "Chess.com"]
[Date "2024.06.02"]
[Round "-"]
[White "booktrunk"]
[Black "ZatixMajor"]
[Result "0-1"]
[WhiteElo "1507"]
[BlackElo "2028"]
[TimeControl "300"]
[EndTime "2:53:39 PDT"]
[Termination "ZatixMajor won by resignation"]

1. d4 {[%clk 0:04:54]} 1... Nf6 {[%clk 0:04:58.4]} 2. Nc3 {[%clk 0:04:52.3]}
2... g6 {[%clk 0:04:57.5]} 3. Bf4 {[%clk 0:04:51.8]} 3... Bg7 {[%clk 0:04:56.9]}
4. Nb5 {[%clk 0:04:50.8]} 4... d6 {[%clk 0:04:55.1]} 5. f3 {[%clk 0:04:48.1]}
5... a6 {[%clk 0:04:54]} 6. Nc3 {[%clk 0:04:46.6]} 6... Nh5 {[%clk 0:04:52.7]}
7. Be3 {[%clk 0:04:44.5]} 7... O-O {[%clk 0:04:50.7]} 8. Bf2 {[%clk 0:04:43.5]}
8... Nf6 {[%clk 0:04:44.6]} 9. e4 {[%clk 0:04:42]} 9... c6 {[%clk 0:04:41.9]}
10. Bd3 {[%clk 0:04:40.7]} 10... b5 {[%clk 0:04:39.7]} 11. a3 {[%clk 0:04:38.2]}
11... a5 {[%clk 0:04:37.7]} 12. Nge2 {[%clk 0:04:34.8]} 12... Ba6 {[%clk
0:04:33.6]} 13. O-O {[%clk 0:04:32.8]} 13... b4 {[%clk 0:04:27.5]} 14. Bxa6
{[%clk 0:04:30.5]} 14... Nxa6 {[%clk 0:04:27.4]} 15. axb4 {[%clk 0:04:28.2]}
15... Nxb4 {[%clk 0:04:26.2]} 16. Na2 {[%clk 0:04:25.1]} 16... c5 {[%clk
0:04:19]} 17. Nxb4 {[%clk 0:04:23.1]} 17... cxb4 {[%clk 0:04:16.1]} 18. d5
{[%clk 0:04:20.9]} 18... Qc7 {[%clk 0:04:11.7]} 19. Rc1 {[%clk 0:04:17.4]} 19...
Nd7 {[%clk 0:04:08.6]} 20. b3 {[%clk 0:04:16]} 20... Nc5 {[%clk 0:04:02.2]} 21.
Bd4 {[%clk 0:04:13.6]} 21... Qb6 {[%clk 0:03:52]} 22. Bxg7 {[%clk 0:04:11.5]}
22... Kxg7 {[%clk 0:03:51.3]} 23. Qd4+ {[%clk 0:04:09.9]} 23... Kg8 {[%clk
0:03:49.7]} 24. Kh1 {[%clk 0:04:08.7]} 24... Qc7 {[%clk 0:03:43]} 25. Rfe1
{[%clk 0:04:02.7]} 25... e6 {[%clk 0:03:38.4]} 26. dxe6 {[%clk 0:04:00.6]} 26...
Nxe6 {[%clk 0:03:37.3]} 27. Qd5 {[%clk 0:03:57.3]} 27... a4 {[%clk 0:03:31.8]}
28. bxa4 {[%clk 0:03:55]} 28... Rxa4 {[%clk 0:03:30.4]} 29. Nd4 {[%clk
0:03:53.7]} 29... Nxd4 {[%clk 0:03:27.7]} 30. Qxd4 {[%clk 0:03:52.2]} 30... Rfa8
{[%clk 0:03:26]} 31. Ra1 {[%clk 0:03:49]} 31... Qxc2 {[%clk 0:03:15.1]} 32. Rxa4
{[%clk 0:03:46.4]} 32... Rxa4 {[%clk 0:03:15]} 33. h3 {[%clk 0:03:43.1]} 33...
Ra2 {[%clk 0:03:11.8]} 34. Rg1 {[%clk 0:03:40.1]} 34... b3 {[%clk 0:03:10.1]}
35. Qxd6 {[%clk 0:03:38.4]} 35... Qc8 {[%clk 0:02:49.5]} 36. Rb1 {[%clk
0:03:34]} 36... b2 {[%clk 0:02:45]} 37. Qb4 {[%clk 0:03:30.6]} 37... Qc1+ {[%clk
0:02:41.8]} 38. Rxc1 {[%clk 0:03:26.5]} 38... bxc1=Q+ {[%clk 0:02:40.7]} 39. Kh2
{[%clk 0:03:26.4]} 39... Qf4+ {[%clk 0:02:39.7]} 40. Kh1 {[%clk 0:03:23.4]}
40... Ra1+ {[%clk 0:02:38.9]} 0-1